Cogmind - Beta 16.1 *** ADVENTURER MODE // 2026.03.27 @ 09:50:01 Player: vinyl Result: Destroyed by G-47 Trooper with Particle Gun Performance ------------- Evolutions (1) 500 Regions Visited (3) 600 Robots Destroyed (19) 95 Value Destroyed (547) 547 Prototype IDs (0) 0 Alien Tech Used (0) 0 Bonus (0) 0 TOTAL SCORE: 1742 Bonus ------- None Cogmind --------- Core Integrity 0/400 Matter 128/300 Energy 91/100 System Corruption 0% Temperature Cool (18) Movement Walking (190) Ox1 Location -9/Mines Parts ------- > --- POWER (1) -------- (None) > --- PROPULSION (3) --- Aluminum Leg > --- UTILITY (3) ------ Medium Storage Unit Terrain Scan Processor Power Shielding > --- WEAPON (2) ------- Light Assault Rifle > --- INVENTORY (10) --- Small Storage Unit Melee Analysis Suite Plasma Cutter Hammer Peak State ------------ > --- POWER ------------ Light Ion Engine > --- PROPULSION ------- Aluminum Leg Aluminum Leg Improved Aluminum Leg > --- UTILITY ---------- Medium Storage Unit Terrain Scan Processor Power Shielding > --- WEAPON ----------- Assault Rifle Light Assault Rifle > --- INVENTORY -------- Wheel Compact Wheel Flight Unit Flight Unit Small Storage Unit Assault Rifle Light Assault Rifle Plasma Cutter Hammer [Rating: 12] Favorites ----------- Power Light Ion Engine Engine Light Ion Engine Propulsion Aluminum Leg Leg Aluminum Leg Wheel Compact Wheel Flight Unit Flight Unit Utility Medium Storage Unit Storage Medium Storage Unit Processor Terrain Scan Processor Protection Power Shielding Weapon Assault Rifle Ballistic Gun Assault Rifle Launcher Rocket Launcher Impact Weapon Hammer Build | -11 -10 -9 -9 ------- Run | Yrd Mat Mat Min Slots Evolved 2 | . . 2 . Power . | . . . . Propulsion 1 | . . 1 . Utility 1 | . . 1 . Weapon . | . . . . Parts Attached 29 | 6 1 15 7 Power 3 | 1 . 2 . Engine 3 | 1 . 2 . Core . | . . . . Reactor . | . . . . Propulsion 13 | 2 . 6 5 Treads . | . . . . Leg 7 | . . 5 2 Wheel 4 | 2 . 1 1 Hover . | . . . . Flight 2 | . . . 2 Utility 5 | 1 1 3 . Device . | . . . . Storage 2 | 1 1 . . Processor 2 | . . 2 . Hackware . | . . . . Protection 1 | . . 1 . Artifact . | . . . . Weapon 8 | 2 . 4 2 Energy Gun . | . . . . Energy Cannon . | . . . . Ballistic Gun 6 | 2 . 4 . Ballistic Cannon . | . . . . Launcher 1 | . . . 1 Special Weapon . | . . . . Impact Weapon 1 | . . . 1 Slashing Weapon . | . . . . Piercing Weapon . | . . . . Special Melee Weapon . | . . . . Unidentified Prototypes . | . . . . Parts Lost 14 | . . 5 9 Power 3 | . . 1 2 Propulsion 7 | . . 2 5 Utility . | . . . . Weapon 4 | . . 2 2 Highest Loss Streak 6 | . . 2 6 To Critical Strikes . | . . . . Average Backups 7 | 2 7 9 7 Power . | . 1 . . Propulsion 3 | 1 3 4 1 Utility . | . . 1 1 Weapon 2 | . 1 2 2 Tool/Special . | . . . . Unused Backups 3 | . . 1 2 Power 1 | . . 1 . Propulsion . | . . . . Utility 1 | . . . 1 Weapon . | . . . . Tool/Special 1 | . . . 1 Average Slot Usage (%) 85 | . 85 81 92 Engine 10 | . 14 11 8 Leg 16 | . . 20 18 Wheel 9 | . 28 7 4 Flight 2 | . . . 7 Storage 11 | . 14 11 11 Processor 6 | . . 5 11 Protection 6 | . . 5 11 Ballistic Gun 19 | . 28 21 12 Impact Weapon 1 | . . . 5 Peak Build Rating 12 | 6 7 12 12 Average Rating 8 | 4 6 8 10 On Entrance 6 | . 6 7 12 Avg Prop Armor Cover (%) 8 | . . 4 8 Naked Turns . | . . . . Heaviest Build 20 | 13 18 18 20 Greatest Support 33 | 32 32 33 33 Greatest Overweight (x) 4 | . . 1 4 Average Overweight (x) . | . . . . Largest Inventory Capacity 10 | 8 10 10 10 Average Capacity 9 | 6 8 10 10 Most Carried 10 | 4 10 10 10 Average Carried 7 | 2 7 9 7 Final Capacity 10 | 8 10 10 10 Final Carried 10 | 4 10 10 4 Class Distribution -------------------- 91% | Mutant 8% | Scavenger-Mutant Dominant Class ---------------- Mutant | -10/Materials Mutant | -9/Materials Mutant | -9/Mines Resources | -11 -10 -9 -9 ----------- Run | Yrd Mat Mat Min Matter Collected 597 | 256 20 257 64 Remotely . | . . . . Salvage Created 607 | . 27 445 135 Parts 41 | . 5 27 9 Haulers Intercepted . | . . . . Recyclers Shooed 1 | . . 1 . Parts Field Recycled . | . . . . Retrieved Matter . | . . . . Parts Self-Destructed . | . . . . Prevented . | . . . . Parts Restored . | . . . . Kills | -11 -10 -9 -9 ------- Run | Yrd Mat Mat Min Combat Hostiles Destroyed 18 | . 2 12 4 Guns 16 | . 2 12 2 AOE 2 | . . . 2 Classes Destroyed 6 | . 1 4 1 Watcher 1 | . . 1 . Swarmer 5 | . 2 3 . Grunt 10 | . . 7 3 Brawler 1 | . . 1 . Duelist 1 | . . . 1 Sentry 1 | . . 1 . Best Kill Streak 5 | . 2 5 2 Combat Bots Only 5 | . 2 5 2 Max Kills in Single Turn 2 | . 1 1 2 Gunslinging . | . . . . Exploded 2 | . . . 2 Melee . | . . . . Uniques/NPCs Destroyed . | . . . . Combat | -11 -10 -9 -9 -------- Run | Yrd Mat Mat Min Hostile Shots Fired 230 | . 10 106 114 Missed 75 | . 4 31 40 Hits 155 | . 6 75 74 Melee 12 | . . 3 9 Projectile 143 | . 6 72 65 Critical Strikes 3 | . . 1 2 Damage Taken 1636 | . 32 706 898 Core 408 | . 6 117 285 Absorbed by Shields . | . . . . Redirected to Shielding 22 | . . 4 18 Ignored by Resistances 482 | . 12 211 259 Core Remaining (%) 98 | 100 97 . . Volleys Fired 79 | . 4 53 22 Largest 2 | . 2 2 2 Hottest 40 | . 40 40 40 Shots Fired 138 | . 8 101 29 Gun 136 | . 8 101 27 Cannon . | . . . . Launcher 2 | . . . 2 Special . | . . . . Kinetic 136 | . 8 101 27 Thermal . | . . . . Explosive 2 | . . . 2 Electromagnetic . | . . . . Robot Hit Streak 23 | . 1 13 23 Robot Miss Streak 2 | . 2 2 1 Penetration Max . | . . . . Secondary Targets 4 | . . 4 . Max Gunslinging Chain 1 | . . 1 . Shots Hit Robots 103 | . 3 74 26 Core Hits 37 | . 2 25 10 Critical Kills . | . . . . Critical Parts Destroyed . | . . . . Critical Strikes . | . . . . Melee Attacks . | . . . . Impact . | . . . . Slashing . | . . . . Piercing . | . . . . Sneak Attacks . | . . . . Combat Hostiles . | . . . . Follow-up Attacks . | . . . . Damage Inflicted 1190 | . 29 748 413 Guns 1054 | . 29 748 277 Cannons . | . . . . Explosions 136 | . . . 136 Melee . | . . . . Ramming . | . . . . Kinetic 1054 | . 29 748 277 Thermal . | . . . . Explosive 136 | . . . 136 Electromagnetic . | . . . . Impact . | . . . . Slashing . | . . . . Piercing . | . . . . Highest Corruption . | . . . . Average Corruption . | . . . . Corruption Purged . | . . . . Corruption Blocked . | . . . . Overload Shots . | . . . . Overflow Damage . | . . . . Projectiles . | . . . . Explosions . | . . . . Melee . | . . . . Knockbacks . | . . . . Impact . | . . . . Kinetic . | . . . . Secondary . | . . . . Self-Inflicted Damage 25 | . . . 25 Shots 1 | . . . 1 Rammed . | . . . . Targets Rammed . | . . . . Kicked . | . . . . Crushed . | . . . . Highest Temperature 12 | . . 12 4 Average Temperature 4 | . . 4 3 Received Heat Transfer 816 | . . 351 465 Siege Activations . | . . . . Martial Activations . | . . . . Shielding Activations . | . . . . Robots Disrupted . | . . . . Combat Hostiles . | . . . . Robots Corrupted . | . . . . Combat Hostiles . | . . . . Parts Fried . | . . . . Impact Corruptions . | . . . . Robots Melted . | . . . . Combat Hostiles . | . . . . Parts Melted . | . . . . Heat Transferred . | . . . . Parts Sabotaged . | . . . . Parts Stolen . | . . . . Parts Stripped . | . . . . Power Chain Reactions . | . . . . Alert | -11 -10 -9 -9 ------- Run | Yrd Mat Mat Min Maximum Alert Level . | . . . . Low Security (%) 100 | 100 100 100 100 Level 1 . | . . . . Level 2 . | . . . . Level 3 . | . . . . Level 4 . | . . . . Level 5 . | . . . . High Security . | . . . . Max Security . | . . . . Peak Influence 134 | . 30 134 58 Initial 42 | . . . 42 Average 31 | . 8 49 17 Influence Increases 497 | . 40 349 108 Destroy 0b10 Robot/C 360 | . 40 240 80 Destroy 0b10 Robot/NC 5 | . . 5 . Destroy Leader 62 | . . 52 10 Successful Hack 5 | . . 5 . Destroy Structure 20 | . . 2 18 Lose Combat Pursuer 45 | . . 45 . Influence Decreases 489 | . 40 220 229 Entered New Map 87 | . . . 87 Time Decay 287 | . 40 175 72 Lost Part 115 | . . 45 70 Squads Dispatched 2 | . . 2 . Investigation 1 | . . 1 . Extermination . | . . . . Reinforcement 1 | . . 1 . Assault . | . . . . Garrison . | . . . . Intercept . | . . . . Searches Triggered . | . . . . Construction Impeded . | . . . . Haulers Reinforced . | . . . . Active Scanning Responses . | . . . . Cargo Convoy Interrupts . | . . . . Stealth | -11 -10 -9 -9 --------- Run | Yrd Mat Mat Min Distress Signals 2 | . . 2 . Communications Jammed . | . . . . Distress Signals . | . . . . Times Spotted 30 | . 3 20 7 Peak Tracking Total 7 | . 2 7 4 Tactical Retreats 3 | . . 3 . Traps | -11 -10 -9 -9 ------- Run | Yrd Mat Mat Min Traps Triggered 2 | . . 2 . Indirectly . | . . . . Trap Hack Attempts . | . . . . Triggered . | . . . . Disarmed . | . . . . Reprogrammed . | . . . . Reused . | . . . . Traps Extracted . | . . . . Installed . | . . . . Triggered . | . . . . Machines | -11 -10 -9 -9 ---------- Run | Yrd Mat Mat Min Machines Disabled . | . . . . Max in Single Turn . | . . . . Machines Repaired . | . . . . Machines Dismantled . | . . . . Machines Sabotaged . | . . . . Overloaded Fab Kills . | . . . . Hacking | -11 -10 -9 -9 --------- Run | Yrd Mat Mat Min Machines Accessed 4 | . 1 3 . Terminals 4 | . 1 3 . Fabricators . | . . . . Repair Stations . | . . . . Recycling Units . | . . . . Scanalyzers . | . . . . Garrison Access . | . . . . Total Hacks 7 | . 2 5 . Successful 4 | . 1 3 . Failed 3 | . 1 2 . Catastrophic 1 | . . 1 . Database Lockouts . | . . . . Manual 3 | . 1 2 . Terminals 7 | . 2 5 . Fabricators . | . . . . Repair Stations . | . . . . Recycling Units . | . . . . Scanalyzers . | . . . . Garrison Access . | . . . . Terminal Hacks 4 | . 1 3 . Terminal Index 1 | . . 1 . Alert Level 1 | . . 1 . Dispatch Records 1 | . . 1 . Maintenance Status 1 | . 1 . . Fabricator Hacks . | . . . . Repair Station Hacks . | . . . . Recycling Unit Hacks . | . . . . Scanalyzer . | . . . . Garrison Access Hacks . | . . . . Unauthorized Hacks . | . . . . Terminals . | . . . . Fabricators . | . . . . Repair Stations . | . . . . Recycling Units . | . . . . Scanalyzers . | . . . . Garrison Access . | . . . . Data Cores Recovered . | . . . . Used . | . . . . Hacking Detections 3 | . . 3 . Full Trace Events . | . . . . Feedback Events . | . . . . Feedback Blocked . | . . . . Robot Schematics Acquired . | . . . . Robots Built . | . . . . Authchips . | . . . . Time . | . . . . Total Robot Build Rating . | . . . . Part Schematics Acquired . | . . . . Parts Built . | . . . . Authchips . | . . . . Time . | . . . . Total Part Build Rating . | . . . . Part Studies Acquired . | . . . . Parts Repaired . | . . . . Time . | . . . . Parts Recycled . | . . . . Recycled Matter . | . . . . Retrieved Matter . | . . . . Retrieved Components . | . . . . Parts Scanalyzed . | . . . . Part Schematics Acquired . | . . . . Parts Damaged . | . . . . Bothacking | -11 -10 -9 -9 ------------ Run | Yrd Mat Mat Min Used RIF Installer . | . . . . Robots Hacked . | . . . . Non-combat . | . . . . Combat . | . . . . Robot Hacks Applied . | . . . . Relay Couplers Released . | . . . . Fabnet Peak Effective % . | . . . . Robots Rewired . | . . . . Allies Hacked . | . . . . Hacks Repelled . | . . . . Allies | -11 -10 -9 -9 -------- Run | Yrd Mat Mat Min Total Allies . | . . . . Largest Group . | . . . . Highest-Rated Group . | . . . . Highest-Rated Ally . | . . . . Total Orders . | . . . . Ally Attacks . | . . . . Total Damage . | . . . . Kills . | . . . . Allies Corrupted . | . . . . Allies Melted . | . . . . Intel | -11 -10 -9 -9 ------- Run | Yrd Mat Mat Min Active Infowar (turns) . | . . . . Robot Analysis Total . | . . . . Derelict Logs Recovered . | . . . . Drone Launches . | . . . . Drone Recoveries . | . . . . Exploration | -11 -10 -9 -9 ------------- Run | Yrd Mat Mat Min Turns Passed 862 | 53 124 445 240 Spaces Moved 506 | 44 106 231 125 Core 6 | 6 . . . Treads . | . . . . Legs 202 | . . 137 65 Wheels 256 | 38 106 94 18 Hover . | . . . . Flight 42 | . . . 42 Fastest Speed 50 | 50 100 100 115 Average Speed 113 | 93 100 112 135 Slowest Speed 360 | 100 100 120 360 Overloaded Moves . | . . . . Propulsion Burnouts . | . . . . Robots Hopped . | . . . . Potential Cave-ins . | . . . . Cave-ins Triggered . | . . . . Exploration Rate (%) 19 | 3 21 23 31 Regions Visited 3 Branch Regions 1 Pre-discovered Areas . | . . . . Known Exits Taken . | . . . . Unknown Exits Taken 3 | 1 1 1 . Scrap Searched . | . . . . Spaces Dug 6 | . . . 6 Terrain Destroyed 20 | . . . 20 Melee . | . . . . Projectile . | . . . . AOE 20 | . . . 20 Terrain Rammed . | . . . . Walls Destroyed . | . . . . Machines Disabled . | . . . . Actions | -11 -10 -9 -9 --------- Run | Yrd Mat Mat Min Total 660 | 53 116 323 168 Wait 22 | . . 18 4 Move 503 | 43 105 230 125 Hop . | . . . . Pick Up 13 | 4 5 2 2 Fast Attach 15 | 6 1 6 2 Attach 13 | . . 5 8 Detach 4 | . 1 2 1 Swap 5 | . . 4 1 Drop 6 | . . 3 3 Fire 79 | . 4 53 22 Melee . | . . . . Ram . | . . . . Kick . | . . . . Crush . | . . . . Escape Stasis . | . . . . Rewire . | . . . . Trap . | . . . . Miscellaneous . | . . . . Route ------- -11/Scrapyard -10/Materials -9/Materials -9/Mines (discovered 1 exit: [*Mat]) History --------- Turn | Location | Event 3 | -11/Scrapyard | Discovered new exit (range 15) 54 | -11/Scrapyard | Entered Materials 174 | -10/Materials | Discovered new exit (range 4) 178 | -10/Materials | Entered another Materials area 178 | -9/Materials | Evolved 2 slots: Propulsion x1, Utility x1 310 | -9/Materials | Build established: Mutant 605 | -9/Materials | Discovered new exit (range 15) 623 | -9/Materials | Entered Mines 630 | -9/Mines | Received a Rocket Launcher from a helpful Derelict 743 | -9/Mines | Core integrity fell below 50% 817 | -9/Mines | Discovered new exit (range 13) 828 | -9/Mines | Core integrity fell below 20% 863 | -9/Mines | Destroyed by G-47 Trooper with Particle Gun Last Messages --------------- 00810_ Lgt. Ion Engine destroyed. 00811_ Acquired Melee Analysis Suite. 00815_ Flight Unit destroyed. 00816_ Dropped Com. Wheel. 00817_ EXIT=FOUND 00821_ The unstable cave ceiling collapses. 00822_ Rocket Launcher destroyed. 00824_ Acquired Aluminum Leg. 00832_ Flight Unit destroyed. 00833_ G-34 Mercenary destroyed. 00838_ U-05 Engineer lays Concrete. 00838_ Acquired 31 matter. 00839_ U-05 Engineer lays Concrete. 00845_ G-34 Mercenary destroyed. 00846_ U-05 Engineer lays Concrete. 00857_ Assault Rifle destroyed. 00857_ Aluminum Leg destroyed. 00858_ U-05 Engineer lays Concrete. 00859_ G-34 Mercenary destroyed. 00860_ U-05 Engineer lays Concrete. Map ----- +----------------------------------------------------+ | #???????????????????????????????? | | #####???????????????????????????? | | ## ##??????????????????????????? | | #??????????????????????????? | | #??????????????????????????? | | #??????????????????????????? | | ##?????????????????????????? | | # ###???????????????????????? | | ## ##??????????????????????? | | ?#### #??????????????????????? | | ????## ##??????????????????????? | | ?????## ##########????????????????????? | | ??????# #????## ##???????????????????? | | ?###### ###### #???????????????????? | | ?# #?????????????? #???? | | ?# ########## #?????????????? #???? | | ?# #????????# #?####????????< #???? | | ?# #????????# ### ####???? #???? | | ?# ####?????## ## ##?## # ##??? | | ?# ##?????## ## ### #??? | | ## #?????## ## r =%[ #??? | | # #????## ##?# ug%* ##??? | | ##???## #### =g[# #??? | | ##??## ## *% ###??????? | | #### = ##??????? | | # ## @ ##?????? | | # ## ## ##????? | | ## ####### ## #????? | | ?#### #?????### ### #????? | | ????## #???????## ####?# #????? | | ?????### #????????###????## ##????? | | ???????## ##????????????????####?????? | | ????????####??????????????????????????? | | ??????????????????????????????????????? | | | | | | | | | | | | | | | | | | | | | | | | | | | | | | | | | +----------------------------------------------------+ Best States ------------- Heat Dissipation 28 Energy Generation 10 Energy Capacity 250 Matter Stores 300 Matter Capacity 300 Sight Range 16 Terrain Scan Density 85 Resistance: KI 20 Resistance: TH 20 Resistance: EX 20 Resistance: EM 20 Resistance: I 20 Resistance: S 20 Resistance: P 20 Power Shielding 33 Evasion (%) 55 Offensive Hacking 10 Item Schematics ----------------- None Robot Schematics ------------------ None Fabricated ------------ Nothing Repaired ---------- Nothing Studied --------- None Alien Tech Used ----------------- None Achievements -------------- None Challenges ------------ None Game ------ Seed CannonHelicalTrap Manual? 0 Play Time 00:14:01 Cumulative 20.6 hours Start 2026.03.27 @ 09:33:57 End 2026.03.27 @ 09:50:01 Sessions 1 Manual Loads 0 Difficulty Adventurer Special Mode None Game No. 35 Rogue 0 Adventurer 35 Explorer 0 Win Type - Total 0 Types 0/0/0/0/0/0/0/0/0/0 Lore% 4 Gallery% 20 Achievement% 14 Wizard Run 0 Options --------- Layout 1 ASCII 0 Keyboard 0 Movement Mouse Keybinds 0 Fullscreen 1 Font 24/Smallcaps Map View 50x35 Zoom Use 0% Tactical HUD 1 Map Filters NONE Filters NONE Steam 1 RUN: 2d90fc3c-ea3b-4aba-9f7c-1deb385a94de